Cogmind - Beta 9.3 @@@ ROGUE MODE // 2019.12.19 @ 22:04:37 Player: Atherys Result: Smashed by cave-in Performance ------------- Evolutions (0) 0 Regions Visited (1) 200 Robots Destroyed (18) 90 Value Destroyed (413) 413 Prototype IDs (0) 0 Alien Tech Used (0) 0 Bonus (0) 0 TOTAL SCORE: 703 Bonus ------- None Cogmind --------- Core Integrity 0/250 Matter 217/300 Energy 98/100 System Corruption 5% Temperature Cool (0) Movement Walking (120) Location -10/Materials Parts ------- > --- POWER (1) -------- (None) > --- PROPULSION (2) --- Aluminum Leg Aluminum Leg > --- UTILITY (2) ------ Medium Storage Unit > --- WEAPON (2) ------- Assault Rifle > --- INVENTORY (8) ---- Ion Engine Aluminum Leg Wheel Wheel Compact Wheel Heat Sink Transport Network Coupler Peak State ------------ > --- POWER ------------ Light Ion Engine > --- PROPULSION ------- Wheel Wheel > --- UTILITY ---------- Heat Sink ECM Suite > --- WEAPON ----------- Light Assault Rifle Grenade Launcher > --- INVENTORY -------- Aluminum Leg Aluminum Leg EM Pulse Gun [Rating: 7] Favorites ----------- Power Light Ion Engine Engine Light Ion Engine Propulsion Wheel Leg Aluminum Leg Wheel Wheel Utility ECM Suite Device ECM Suite Storage Medium Storage Unit Weapon Light Assault Rifle Energy Gun EM Pulse Gun Ballistic Gun Light Assault Rifle Launcher Grenade Launcher Build | -11 -10 ------- Run | Scr Mat Slots Evolved . | . . Power . | . . Propulsion . | . . Utility . | . . Weapon . | . . Parts Attached 16 | 9 7 Power 1 | 1 . Engine 1 | 1 . Core . | . . Reactor . | . . Propulsion 6 | 4 2 Treads . | . . Leg 4 | 2 2 Wheel 2 | 2 . Hover . | . . Flight . | . . Utility 3 | 1 2 Device 2 | 1 1 Storage 1 | . 1 Processor . | . . Hackware . | . . Protection . | . . Artifact . | . . Weapon 6 | 3 3 Energy Gun 2 | 1 1 Energy Cannon . | . . Ballistic Gun 3 | 2 1 Ballistic Cannon . | . . Launcher 1 | . 1 Special Weapon . | . . Impact Weapon . | . . Slashing Weapon . | . . Piercing Weapon . | . . Special Melee Weapon . | . . Unidentified Prototypes . | . . Parts Lost 6 | . 6 Power 1 | . 1 Propulsion 1 | . 1 Utility 1 | . 1 Weapon 3 | . 3 Highest Loss Streak 4 | . 4 Average Slot Usage (%) 94 | . 94 Engine 10 | . 10 Leg 7 | . 7 Wheel 20 | . 20 Device 15 | . 15 Storage 11 | . 11 Energy Gun 3 | . 3 Ballistic Gun 14 | . 14 Launcher 9 | . 9 Naked Turns . | . . Heaviest Build 16 | 7 16 Greatest Support 20 | 20 20 Greatest Overweight (x) . | . . Average Overweight (x) . | . . Largest Inventory Capacity 8 | 4 8 Average Capacity 6 | 4 7 Most Carried 7 | 4 7 Average Carried 4 | 2 4 Final Capacity 8 | 4 8 Final Carried 7 | 4 7 Class Distribution -------------------- 100% | Mutant Dominant Class ---------------- Mutant | -10/Materials Resources | -11 -10 ----------- Run | Scr Mat Matter Collected 445 | 222 223 Remotely . | . . Salvage Created 289 | 49 240 Parts 29 | 3 26 Haulers Intercepted 1 | . 1 Recyclers Shooed 3 | . 3 Parts Field Recycled . | . . Retrieved Matter . | . . Parts Self-Destructed . | . . Prevented . | . . Kills | -11 -10 ------- Run | Scr Mat Combat Hostiles Destroyed 12 | 1 11 Guns 4 | 1 3 AOE 8 | . 8 Classes Destroyed 6 | 1 5 Worker 1 | . 1 Builder 3 | . 3 Hauler 1 | . 1 Recycler 1 | . 1 Swarmer 3 | . 3 Grunt 9 | 1 8 Best Kill Streak 10 | 1 10 Combat Bots Only 6 | 1 6 Max Kills in Single Turn 2 | 1 2 Gunslinging . | . . Exploded 2 | . 2 Melee . | . . Uniques/NPCs Destroyed . | . . Combat | -11 -10 -------- Run | Scr Mat Damage Taken 768 | 20 748 Core 254 | . 254 Absorbed by Shields . | . . Core Remaining (%) 100 | 100 . Volleys Fired 34 | 4 30 Largest 2 | 2 2 Hottest 60 | 40 60 Shots Fired 58 | 8 50 Gun 44 | 8 36 Cannon . | . . Launcher 14 | . 14 Special . | . . Kinetic 38 | 8 30 Thermal . | . . Explosive 14 | . 14 Electromagnetic 6 | . 6 Robot Hit Streak 8 | 2 8 Robot Miss Streak 3 | 2 3 Penetration Max . | . . Secondary Targets . | . . Shots Hit Robots 39 | 4 35 Core Hits 35 | 3 32 Critical Hits 1 | . 1 Critical Kills 1 | . 1 Critical Parts Destroyed . | . . Melee Attacks . | . . Impact . | . . Slashing . | . . Piercing . | . . Sneak Attacks . | . . Combat Hostiles . | . . Follow-up Attacks . | . . Damage Inflicted 1410 | 54 1356 Guns 296 | 54 242 Cannons . | . . Explosions 1114 | . 1114 Melee . | . . Ramming . | . . Kinetic 244 | 54 190 Thermal 248 | . 248 Explosive 866 | . 866 Electromagnetic 52 | . 52 Impact . | . . Slashing . | . . Piercing . | . . Highest Corruption . | . . Average Corruption . | . . Corruption Purged . | . . Overload Shots . | . . Overflow Damage 168 | . 168 Projectiles . | . . Explosions 168 | . 168 Melee . | . . Knockbacks . | . . Impact . | . . Kinetic . | . . Secondary . | . . Self-Inflicted Damage 175 | . 175 Shots 3 | . 3 Rammed . | . . Targets Rammed . | . . Kicked . | . . Crushed . | . . Highest Temperature 26 | 6 26 Average Temperature 9 | 6 9 Received Heat Transfer 153 | 12 141 Siege Activations . | . . Robots Corrupted . | . . Combat Hostiles . | . . Parts Fried . | . . Impact Corruptions . | . . Robots Melted . | . . Combat Hostiles . | . . Parts Melted . | . . Heat Transferred 200 | . 200 Parts Sabotaged . | . . Parts Stolen . | . . Parts Stripped . | . . Power Chain Reactions . | . . Missiles Intercepted . | . . Alert | -11 -10 ------- Run | Scr Mat Peak Influence 396 | 20 396 Average Influence 158 | 3 195 Maximum Alert Level 1 | . 1 Low Security (%) 69 | 100 62 Level 1 30 | . 37 Level 2 . | . . Level 3 . | . . Level 4 . | . . Level 5 . | . . High Security . | . . Max Security . | . . Squads Dispatched 2 | . 2 Investigation 2 | . 2 Extermination . | . . Reinforcement . | . . Assault . | . . Garrison . | . . Intercept . | . . Construction Impeded . | . . Haulers Reinforced . | . . Stealth | -11 -10 --------- Run | Scr Mat Distress Signals 1 | . 1 Communications Jammed . | . . Distress Signals . | . . Times Spotted 17 | 1 16 Peak Tracking Total 6 | 1 6 Tactical Retreats 2 | . 2 Traps | -11 -10 ------- Run | Scr Mat Traps Triggered 2 | . 2 Indirectly . | . . Trap Hack Attempts . | . . Triggered . | . . Disarmed . | . . Reprogrammed . | . . Reused . | . . Traps Extracted . | . . Installed . | . . Triggered . | . . Machines | -11 -10 ---------- Run | Scr Mat Machines Disabled 4 | . 4 Max in Single Turn 3 | . 3 Machines Sabotaged . | . . Garrisons Compromised . | . . Overloaded Fab Kills . | . . Fab Network Shutdowns . | . . Hacking | -11 -10 --------- Run | Scr Mat Machines Accessed 3 | . 3 Terminals 3 | . 3 Fabricators . | . . Repair Stations . | . . Recycling Units . | . . Scanalyzers . | . . Garrison Access . | . . Total Hacks 8 | . 8 Successful 6 | . 6 Failed 2 | . 2 Catastrophic . | . . Database Lockouts . | . . Manual . | . . Terminals 8 | . 8 Fabricators . | . . Repair Stations . | . . Recycling Units . | . . Scanalyzers . | . . Garrison Access . | . . Terminal Hacks 6 | . 6 Record 2 | . 2 Robot Analysis 2 | . 2 Assault Status 1 | . 1 Zone Layout 1 | . 1 Fabricator Hacks . | . . Repair Station Hacks . | . . Recycling Unit Hacks . | . . Scanalyzer . | . . Garrison Access Hacks . | . . Unauthorized Hacks . | . . Terminals . | . . Fabricators . | . . Repair Stations . | . . Recycling Units . | . . Scanalyzers . | . . Garrison Access . | . . Data Cores Recovered . | . . Used . | . . Hacking Detections 3 | . 3 Full Trace Events 1 | . 1 Feedback Events . | . . Feedback Blocked . | . . Robot Schematics Acquired . | . . Robots Built . | . . Matter . | . . Time . | . . Total Robot Build Rating . | . . Part Schematics Acquired . | . . Parts Built . | . . Matter . | . . Time . | . . Total Part Build Rating . | . . Parts Repaired . | . . Time . | . . Parts Recycled . | . . Recycled Matter . | . . Retrieved Matter . | . . Retrieved Components . | . . Parts Scanalyzed . | . . Part Schematics Acquired . | . . Parts Damaged . | . . Bothacking | -11 -10 ------------ Run | Scr Mat Used RIF Installer . | . . Robots Hacked . | . . Non-combat . | . . Combat . | . . Robot Hacks Applied . | . . Relay Couplers Released . | . . Robots Rewired . | . . Allies Hacked . | . . Hacks Repelled . | . . Allies | -11 -10 -------- Run | Scr Mat Total Allies . | . . Largest Group . | . . Highest-Rated Group . | . . Highest-Rated Ally . | . . Total Orders . | . . Ally Attacks . | . . Total Damage . | . . Kills . | . . Allies Corrupted . | . . Allies Melted . | . . Intel | -11 -10 ------- Run | Scr Mat Robot Analysis Total 2 | . 2 Derelict Logs Recovered . | . . Drone Launches . | . . Drone Recoveries . | . . Exploration | -11 -10 ------------- Run | Scr Mat Turns Passed 441 | 85 356 Spaces Moved 365 | 70 295 Core 17 | 17 . Treads . | . . Legs 57 | 2 55 Wheels 291 | 51 240 Hover . | . . Flight . | . . Fastest Speed 50 | 50 80 Average Speed 84 | 73 87 Slowest Speed 120 | 120 120 Overloaded Moves . | . . Propulsion Burnouts . | . . Robots Hopped . | . . Cave-ins Triggered 1 | . 1 Exploration Rate (%) 27 | 6 49 Regions Visited 1 Branch Regions . Pre-discovered Areas . | . . Known Exits Taken . | . . Unknown Exits Taken 1 | 1 . Scrap Searched . | . . Spaces Dug . | . . Terrain Destroyed 137 | . 137 Melee . | . . Projectile . | . . AOE 137 | . 137 Actions | -11 -10 --------- Run | Scr Mat Total 449 | 97 352 Wait . | . . Move 364 | 69 295 Hop . | . . Pick Up 24 | 11 13 Fast Attach . | . . Attach 16 | 9 7 Detach 4 | 3 1 Swap . | . . Drop 7 | 1 6 Fire 34 | 4 30 Melee . | . . Ram . | . . Kick . | . . Crush . | . . Escape Stasis . | . . Rewire . | . . Trap . | . . Miscellaneous . | . . Route ------- -11/Scrapyard -10/Materials (discovered 1 exit: [*Mat]) History --------- Turn | Location | Event 2 | -11/Scrapyard | Met Revision 17 61 | -11/Scrapyard | Discovered new exit (range 8) 86 | -11/Scrapyard | Entered Materials 284 | -10/Materials | Discovered new exit (range 3) 308 | -10/Materials | Build established: Mutant 341 | -10/Materials | Core integrity fell below 50% 379 | -10/Materials | Lost 4 parts (1p1n2w) 443 | -10/Materials | Crushed by falling debris 443 | -10/Materials | Smashed by cave-in Last Messages --------------- 00418_ K-01 Serf collects debris. 00422_ U-05 Engineer lays Concrete. 00423_ Acquired Ion Engine. 00424_ U-05 Engineer lays Concrete. 00425_ K-01 Serf collects debris. 00428_ Acquired Wheel. 00430_ U-05 Engineer lays Concrete. 00438_ K-01 Serf collects debris. 00439_ U-05 Engineer lays Concrete. 00439_ U-05 Engineer builds a Wall. 00440_ U-05 Engineer lays Concrete. 00442_ U-05 Engineer builds a Wall. 00443_ The unstable cave ceiling collapses. 00443_ Crushed by falling debris. [Achievement: Unlikely Earthworm] 00443_ ECM Suite destroyed. 00443_ System corrupted by crushing effect (+4). 00443_ EM Pulse Gun destroyed. 00443_ System corrupted by crushing effect (+1). [Achievement: First Step to Greatness] Map ----- +----------------------------------------------------+ | ???????? ????????????????????????????????????????? | | ???????? #???????????????????????????????????????? | | ???????? ???????????????????????????????????????? | | ???????? ??????????????????####?????????????????# | | ???????? ?????????# ???????"""#?????????????????# | | ???????? ?????????# "??####"Y"##########????????# | | ???????? ####+##### ""?# ????????# | | ???????? # # T" # ?????????# | | ???????? + # "" + """ ???????????# | | ???????? # #????# """ ????????????# | | ????????# # #????# """ ################ | | ????????# # #????# """ ### ## T # | | ????????# # #????# ## # | | ????????# # #????# ## """ # | | ????????# # % ###### "T" = [! """" # | | ????????# + + !+ """" # | | ????????# ################ [# """ + | | ????????# #?????# # ############### # """ # | | ????????# ####### # ## ####### ## # | | ????????# ## # # # ## # | | ????????# ## * # # ##! | # | | ????????# ## % # ########## | | ????????# ## # # # ######???? | | ????????# ## ###+# # # u # #???? | | ????????# ### ## # # + #???? | | ????????# #?# # @## # #???? | | ????????# #?# # ## # #???? | | ????????# #?# # ## # #???? | | ????????# #?# # ########### #???? | | ????????# #?# ;# #????????# #???? | | ???######+### ;;u #????????# ##??? | | ???# # ; #????????? # #??? | | ???#""" # ; #????????? # #??? | | ???#""" # # #?????????? # #??? | | ???#""" # #; ; ##?????????? # #??? | | ???# + #; ; #??????????? # #??? | | ???#""" # ## ; ##??????????? #######??? | | ???#""" # < ##;;;;;;;##???????????? #????????? | | ???#""" # #?### # #?????????????##????????? | | ???# #####????#####???????????????????????? | | ???##########????????????????????????????????????? | | ?????????????????????????????????????????????????? | | ?????????????????????????????????????????????????? | | ?????????????????????????????????????????????????? | | ?????????????????????????????????????????????????? | | ?????????????????????????????????????????????????? | | ?????????????????????????????????????????????????? | | ?????????????????????????????????????????????????? | | | | | +----------------------------------------------------+ Best States ------------- Heat Dissipation 25 Energy Generation 10 Energy Capacity 125 Matter Stores 300 Matter Capacity 300 Sight Range 16 Terrain Scan Density 10 ECM Strength 1 Evasion (%) 50 Item Schematics ----------------- None Robot Schematics ------------------ None Fabricated ------------ Nothing Alien Tech Used ----------------- None Achievements -------------- First Step to Greatness Unlikely Earthworm Challenges ------------ None Game ------ Seed CloakTacticalSuite Manual? 0 Play Time 00:16:26 Cumulative 2.7 hours Start 2019.12.19 @ 21:45:39 End 2019.12.19 @ 22:04:37 Sessions 1 Manual Loads 0 Difficulty Rogue Special Mode None Game No. 2 Rogue 2 Adventurer 0 Explorer 0 Win Type - Total 0 Types 0/0/0/0/0/0/0 Lore% 2 Gallery% 4 Achievement% 7 Wizard Run 0 Options --------- ASCII 0 Keyboard 1 Movement Vi Keybinds 0 Fullscreen 1 Font 18/Smallcaps Map View 76x50 Tactical HUD 1 Map Filters NONE Filters NONE Steam 1 RUN: 72128c12-cfc1-412a-919c-6e78ef30abdb